Workbook

Sheet Instructions
A1: If you are using an assisted reading device, such as a screen reader, or are otherwise having trouble reading or understaning the information contained within this resource, please contact our office directly at 248-370-3611 and we would be happy to assist you.
B3: 2022-2023 Loan Planner Instructions
B7: 1) | C7: Complete the Expense Planner tab | K7: FINANCIAL SERVICES CONTACT INFORMATION: Email: medfinservices@oakland.edu Phone: 248-370-3611
B9: 2) | C9: Select the appropriate year tab (M1 Loan Planner, etc.)
B11: 3) | C11: Fill in the Required Amounts in the Loan Planner tab for your year (M1 Loan Planner, etc.)
B13: 4) | C13: Always review award status prior to accepting, applying for, or revising loans in MySail
K14: IMPORTANT INFORMATION: This Student Loan Planner file is ONLY valid for the 2022-2023 academic year. A new Planner must be downloaded for each academic year.
B15: 5) | C15: Accept an Unsubsidized Loan and, if needed, apply for a Graduate PLUS Loan as directed in the tab
B17: 6) | C17: Enroll in direct deposit through MySail if you have not already done so
B19: 7) | C19: Consider enrolling in a Payment Plan at through eBill** if needed
B21: 8) | C21: What's Next: Disbursements & Refunds and Helpful Resources | K21: ** Newly admitted students will be able to enroll in a Payment Plan starting in mid-July.
B30: All First-time Unsubsidized Borrowers MUST Also Complete:
B31: - | C31: Entrance Counseling
B32: - | C32: Master Promissory Note (MPN)
C33: *(Will be listed as Unsatisfied Requirements in SAIL until completed and system is updated)
B35: All Returning Borrowers Are STRONGLY Advised to Annually Complete:
B36: - | C36: Student Loan Review

Sheet Expense Planner
B2: 2022-2023 Expense Planner
B5: Fixed Monthly Expenses | E5: Variable Monthly Expenses
B6: Rent/Mortgage | C6: 0 | E6: Groceries/Household supplies | F6: 0 | J6: = Required Amount
B7: Renters/Homeowners Insurance | C7: 0 | E7: Dining out | F7: 0
B8: Utilities | C8: 0 | E8: Clothes | F8: 0 | I8: FINANCIAL SERVICES CONTACT INFORMATION: Email: medfinservices@oakland.edu Phone: 248-370-3611
B9: Electric (Avg. $51)* | C9: 0 | E9: Laundry/Dry cleaning | F9: 0
B10: Gas (Avg. $25)* | C10: 0 | E10: Gas/Oil/Auto maintenance | F10: 0
B11: Internet (Avg. $35)* | C11: 0 | E11: Health/Beauty/Haircuts | F11: 0
B12: Water (Avg. $25)* | C12: 0 | E12: Medical/Dental/Eye care | F12: 0
B13: Cellular phone | C13: 0 | E13: Hobbies/Recreation | F13: 0
B14: Auto insurance | C14: 0 | E14: Other ______________________ | F14: 0
B15: Other ____________________ | C15: 0 | E15: Other ______________________ | F15: 0
B16: Total Fixed Expenses: | C16: =SUM(C6:C15) -> 0 | E16: Total Variable Expenses: | F16: =SUM(F6:F15) -> 0
B18: * Do not include expenses for which you are not directly responsible. For example, if your family will pay your cell phone bill or car insurance, do not included those expenses on this worksheet as the purpose is to determine how much you should borrow to meet your remaining need. | E18: Total Variable Expenses: | F18: =SUM(F6:F15) -> 0
E19: Total Fixed Expenses: | F19: =SUM(C6:C15) -> 0
E20: Total Monthly Expenses: | F20: =SUM(F18:F19) -> 0 | J20: = Transferred to Loan Planner
E22: Select appropriate year tab below.
B26: * Utility Averages | E26: Utility Bill Budget Plans | I26: IMPORTANT INFORMATION: This Student Loan Planner file is ONLY valid for the 2022-2023 academic year. A new Planner must be downloaded for each academic year.
B27: Please note that these averages were taken from the latest OUWB cost of living survey and are intended to provide a general reference. | E27: Optional plans which 'even out' monthly payments over the year to make budgeting these expenses easier. The utility company estimates total cost for the year and divides by twelve months to determine a monthly payment amount. They will periodically recalculate this amount.
E32: Electric - DTE Energy
E33: Gas - Consumers Energy

Sheet M1 Loan Planner
B2: 2022-2023 M1 Loan Planner
B5: Estimated Expenses
B6: Estimated Tuition | F6: 59674
B7: Planned Monthly Expenses (Aug - May) | D7: ='Expense Planner'!$F$20 -> 0 | E7: x 10 months | F7: =D7*10 -> 0 | J7: = Transferred from Expense Planner
B8: Books, supplies and diagnostic kit ($1,400 included in Cost of Attendance) | F8: 0 | J8: = Required Amount
B9: One-time expenses (i.e. moving expenses) | F9: 0 | J9: = Recommended Amount
B10: Total Estimated Expenses: | F10: =SUM(F6:F9) -> 59674
B12: Estimated Support | I12: FINANCIAL SERVICES CONTACT INFORMATION: Email: medfinservices@oakland.edu Phone: 248-370-3611
B13: Awards and scholarships (SAIL) | F13: 0
B14: Savings and other resources (529s, MESP, MET, Americorps, etc.) | F14: 0
B15: Family support for tuition, books and supplies | F15: 0
B16: Total Estimated Support: | F16: =SUM(F13:F15) -> 0
B18: Remaining Need: | F18: =F10-F16 -> 59674
B20: Total Recommended Unsubsidized Direct Loan (Including Loan Fees) for 2022-2023: | F20: =IF((F18/(1-0.01057))<=42722,(F18/(1-0.01057)),42722) -> 42722 | I20: IMPORTANT INFORMATION: This Student Loan Planner file is only valid for the 2022-2023 academic year. A new Planner must be downloaded for each academic year.
B21: Recommended Amount for Fall 2022: | F21: =F20/2 -> 21361
B22: Recommended Amount for Winter 2023: | F22: =F20/2 -> 21361
B23: Log into SAIL
B24: Instructions for accepting an Unsubsidized loan in SAIL
B26: Recommended Graduate PLUS Loan (Including Loan Fees) for 2022-2023 | F26: =IF((F18/(1-0.01057))>42722,((F18-42270)/(1-0.04228)),0) -> 18172.32594
B27: Log into studentaid.gov
B28: Instructions for applying for a Graduate PLUS Loan
B34: All First-time Unsubsidized Borrowers MUST Also Complete:
B35: ⎯ Entrance Counseling
B36: ⎯ Master Promissory Note (MPN)
B37: (Will be listed as Unsatisfied Requirements in SAIL until completed and system is updated)

Sheet M2 Loan Planner
B2: 2022-2023 M2 Loan Planner
B5: Estimated Expenses
B6: ='M1 Loan Planner'!$B$6 -> Estimated Tuition | F6: 59674
B7: Monthly budget (Aug - Jun) | D7: ='Expense Planner'!$F$20 -> 0 | E7: x 11 months | F7: =D7*11 -> 0 | J7: = Transferred from Expense Planner
B8: Books and supplies ($890 included in Cost of Attendance) | F8: 0 | J8: = Required Amount
B9: USMLE Step 1 Fees ($660 included in Cost of Attendance) | F9: 0 | J9: = Recommended Amount
B10: One-time expenses | F10: 0
B11: Total Estimated Expenses: | F11: =SUM(F6:F10) -> 59674
B13: Estimated Support | I13: FINANCIAL SERVICES CONTACT INFORMATION: Email: medfinservices@oakland.edu Phone: 248-370-3611
B14: Awards and scholarships (SAIL) | F14: 0
B15: Savings and other resources (529s, MESP, MET, Americorps, etc.) | F15: 0
B16: Family support | F16: 0
B17: Total Estimated Support: | F17: =SUM(F14:F16) -> 0
B19: Remaining Need: | F19: =F11-F17 -> 59674
B21: Total Recommended Unsubsidized Direct Loan (Including Loan Fees) for 2022-2023: | F21: =IF((F19/(1-0.01057))<=44944,(F19/(1-0.01057)),44944) -> 44944 | I21: IMPORTANT INFORMATION: This Student Loan Planner file is only valid for the 2022-2023 academic year. A new Planner must be downloaded for each academic year.
B22: Recommended Amount for Fall 2022: | F22: =F21/2 -> 22472
B23: Recommended Amount for Winter 2023: | F23: =F21/2 -> 22472
B24: Log into SAIL
B25: Instructions for accepting an Unsubsidized loan in SAIL
B27: Recommended Graduate PLUS Loan (Including Loan Fees) for 2022-2023 | F27: =IF((F19/(1-0.01057))>44944,((F19-44467)/(1-0.04228)),0) -> 15878.33605
B28: Log into studentaid.gov
B29: Instructions for applying for a Graduate PLUS Loan
B31: All Returning Borrowers Are STRONGLY Advised to Annually Complete:
B32: Student Loan Review

Sheet M3 Loan Planner
B2: 2022-2023 M3 Loan Planner
B5: Estimated Expenses
B6: ='M1 Loan Planner'!$B$6 -> Estimated Tuition | F6: 59674
B7: Monthly budget (Jul - Jun) | D7: ='Expense Planner'!$F$20 -> 0 | E7: x 12 months | F7: =D7*12 -> 0 | J7: = Transferred from Expense Planner
B8: Books and supplies ($400 included in Cost of Attendance) | F8: 0 | J8: = Required Amount
B9: USMLE Step 2 Fees ($660 included in Cost of Attendance) | F9: 0 | J9: = Recommended Amount
B10: One-time expenses | F10: 0
B11: Total Estimated Expenses: | F11: =SUM(F6:F10) -> 59674
B13: Estimated Support | I13: FINANCIAL SERVICES CONTACT INFORMATION: Email: medfinservices@oakland.edu Phone: 248-370-3611
B14: Awards and scholarships (SAIL) | F14: 0
B15: Savings and other resources (529s, MESP, MET, Americorps, etc.) | F15: 0
B16: Family support | F16: 0
B17: Total Estimated Support: | F17: =SUM(F14:F16) -> 0
B19: Remaining Need: | F19: =F11-F17 -> 59674
B21: Total Recommended Unsubsidized Direct Loan (Including Loan Fees) for 2022-2023: | F21: =IF((F19/(1-0.01057))<=47167,(F19/(1-0.01057)),47167) -> 47167 | I21: IMPORTANT INFORMATION: This Student Loan Planner file is only valid for the 2022-2023 academic year. A new Planner must be downloaded for each academic year.
B22: Recommended Amount for Fall 2022: | F22: =F21/2 -> 23583.5
B23: Recommended Amount for Winter 2023: | F23: =F21-F22 -> 23583.5
B24: Log into SAIL
B25: Instructions for accepting an Unsubsidized loan in SAIL
B27: Recommended Graduate PLUS Loan (Including Loan Fees) for 2022-2023 | F27: =IF((F19/(1-0.01057))>47167,((F19-46666)/(1-0.04228)),0) -> 13582.25786
B28: Log into studentaid.gov
B29: Instructions for applying for a Graduate PLUS Loan
B31: All Returning Borrowers Are STRONGLY Advised to Annually Complete:
B32: Student Loan Review

Sheet M4 Loan Planner
B2: 2022-2023 M4 Loan Planner
B5: Estimated Expenses
B6: ='M1 Loan Planner'!$B$6 -> Estimated Tuition | F6: 59674
B7: Monthly budget (Jul - Apr) | D7: ='Expense Planner'!$F$20 -> 0 | E7: x 10 months | F7: =D7*10 -> 0 | J7: = Transferred from Expense Planner
B8: Books and supplies ($460 included in Cost of Attendance) | F8: 0 | J8: = Required Amount
B9: Residency Application/Interview Costs ($4500 included in Cost of Attendance) | D9: ERAS Fee Calculator | F9: 0 | J9: = Recommended Amount
B10: One-time expenses | F10: 0
B11: Total Estimated Expenses: | F11: =SUM(F6:F10) -> 59674
B13: Estimated Support | I13: FINANCIAL SERVICES CONTACT INFORMATION: Email: medfinservices@oakland.edu Phone: 248-370-3611
B14: Awards and scholarships (SAIL) | F14: 0
B15: Savings and other resources (529s, MESP, MET, Americorps, etc.) | F15: 0
B16: Family support | F16: 0
B17: Total Estimated Support: | F17: =SUM(F14:F16) -> 0
B19: Remaining Need: | F19: =F11-F17 -> 59674
B21: Total Recommended Unsubsidized Direct Loan (Including Loan Fees) for 2022-2023: | F21: =IF((F19/(1-0.01057))<=42722,(F19/(1-0.01057)),42722) -> 42722 | I21: IMPORTANT INFORMATION: This Student Loan Planner file is only valid for the 2022-2023 academic year. A new Planner must be downloaded for each academic year.
B22: Recommended Amount for Fall 2022: | F22: =F21/2 -> 21361
B23: Recommended Amount for Winter 2023: | F23: =F21/2 -> 21361
B24: Log into SAIL
B25: Instructions for accepting an Unsubsidized loan in SAIL
B27: Recommended Graduate PLUS Loan (Including Loan Fees) for 2022-2023 | F27: =IF((F19/(1-0.01057))>42722,((F19-42270)/(1-0.04228)),0) -> 18172.32594
B28: Log into studentaid.gov
B29: Instructions for applying for a Graduate PLUS Loan
B31: All Returning Borrowers Are STRONGLY Advised to Annually Complete:
B32: Student Loan Review

Sheet PLUS Instructions
B2: Graduate PLUS Application Instructions
B6: ***Graduate PLUS Application is available starting in April***
B8: 1.) | C8: Always review award status at MySail prior to applying for a Graduate PLUS Loan | K8: FINANCIAL SERVICES CONTACT INFORMATION: Email: medfinservices@oakland.edu Phone: 248-370-3611
B10: 2.) | C10: Only apply for Graduate PLUS Loan if needed. (Recommended will be populated in Loan Planner)
B12: 3.) | C12: Login to | D12: studentaid.gov | E12: using your FSA ID and Password
B14: 4.) | C14: Under 'Select and Award Year,' select '2022-2023'
B16: 5.) | C16: Under 'Loan Amount Requested', select 'I would like to specify a loan amount' radio button
B18: 6.) | C18: Type in the Recommended Graduate PLUS Loan amount from the Loan Planner
B20: 7.) | C20: Under 'Loan Period Requested', select '09/2022 - 04/2023'
B22: 8.) | C22: Complete the remaining steps and submit the application
B24: 9.) | C24: Complete the PLUS Master Promissory Note (MPN) if prompted to do so

Sheet Loan Review Instructions
B2: Instructions for Accessing studentaid.gov & AAMC MedLoans Organizer and Calculator (MLOC)
B7: Financial Services strongly recommends that all student loan borrowers complete this review on an annual basis.
C9: Step 1: Log into studentaid.gov, select "View Details," and select “Download My Aid Data”
C11: Step 2: Log into aamc.org/mloc and select “Get Started Now”
C13: Step 3: Select “Import NSLDS” and upload the .txt file you downloaded in Step 1
C15: Step 4: Select the green (+) "Add loan" button and input projected and private loan amounts
C17: Step 5: Select the Medloans Calculator tab and enter your anticipated residency length, salary, and graduation date
C20: *While logged into studentaid.gov, review your individual federal student loans by clicking on the number associated with each loan. This will provide you with access to the contact information for your loan servicer.
C24: **It is advised that you print a copy of your loan detail screen for your records and keep it safe and accessible.

Sheet Revision Instructions
B2: Loan Revision Instructions
B6: 1.) | C6: Always review award status at mysail.oakland.edu prior to revising loans | J6: FINANCIAL SERVICES CONTACT INFORMATION: Email: medfinservices@oakland.edu Phone: 248-370-3611
B8: 2.) | C8: Only submit a loan revision if needed AFTER initial Acceptance in SAIL
B10: 3.) | C10: Log into the 2022-2023 Online Revision Form
B12: 4.) | C12: From the Loan Planner, enter the Recommended amount(s) in the Revision Form as follows:
C14: Fall Unsubsidized - #1 | D14: Fall Grad PLUS - #3 (decrease only)
C15: Winter Unsubsidized - #2 | D15: Winter Grad PLUS - #4 (decrease only)
B17: 5.) | C17: Submit the Online Revision Form

Sheet What's Next
B2: Fall 2022 Important Dates
C4: M1 | D4: M2 | E4: M3 | F4: M4
B5: Loan Acceptance/Application Priority Date | C5: July 1 | E5: June 1 | I5: FINANCIAL SERVICES CONTACT INFORMATION: Email: medfinservices@oakland.edu Phone: 248-370-3611
B6: Payment Plan Enrollment Opens | C6: July 17 | E6: June 17
B7: Earliest Possible Disbursement | C7: July 22 | D7: July 29 | E7: June 21 | F7: June 25
B8: Refund Direct Deposited | C8: 5-7 Business Days After Disbursement
B9: Classes Begin | C9: August 1 | D9: August 8 | E9: July 1 | F9: July 5
B10: Payment Due / Plan Enrollment Closes | C10: August 15 | E10: July 15
B11: Deadline to Return Loans through School | C11: 30 Days After Disbursement
B12: Deadline to Return Loans through Servicer | C12: 120 Days After Disbursement
B16: Winter 2023 Important Dates
C18: M1 | D18: M2 | E18: M3 | F18: M4
B19: Loan Adjustment Priority Date | C19: December 1
B20: Payment Plan Enrollment Opens | C20: December 17
B21: Earliest Possible Disbursement | C21: December 30 | E21: December 24
B22: Refund Direct Deposited | C22: 5-7 Business Days After Disbursement
B23: Classes Begin | C23: January 9 | E23: January 3
B24: Payment Due / Plan Enrollment Closes | C24: January 15
B25: Deadline to Return Loans through School | C25: 30 Days After Disbursement
B26: Deadline to Return Loans through Servicer | C26: 120 Days After Disbursement
B30: Where To Go
B32: Financial Aid Status and Direct Deposit | C32: MySail
B33: Payment and Payment Plans | C33: eBILL
B34: International Payments | C34: Flywire
B38: Helpful Resources
B40: General Information | D40: Books and Supplies
B41: OUWB Financial Services | D41: Textbook Lists by Class
B42: OUWB Cost of Attendance
D43: USMLE Fees
D44: USMLE Step Exam Fees
B45: Budgeting Resources
B46: AAMC Budgeting Basics | D46: Residency Application, Interview and Match
B47: AAMC Budgeting Ideas and Tips | D47: AAMC Cost of Applying for Residency
D48: AAMC Cost of Interviewing for Residency
B49: Federal Loan Information
B50: Interest Rates and Fees | D50: Student Loan Repayment
B51: Federal Direct (Unsubsidized) Loan Overview | D51: AAMC Education Debt Manager
B52: Federal PLUS Loan Overview | D52: Federal Loan Repayment Overview
